fUST/lending_fUST_20241003
["ID","MTS","AMOUNT","RATE_DAILY","PERIOD"]
[339736846,1727919055421,500.0,0.00021,60]
[339736847,1727919055921,500.0,0.00021,60]
[339736848,1727919056492,500.0,0.00021,60]
[339736849,1727919058037,500.0,0.00021,60]
[339736850,1727919058886,428.7349013,0.00021,60]
[339736851,1727919060314,500.0,0.00021,60]
[339736852,1727919063115,500.0,0.00021,60]
[339736853,1727919063751,286.75718028,0.00021,60]
[339736854,1727919064758,628.59,0.00021,60]
[339736855,1727919066731,500.0,0.00021,60]
[339736856,1727919066881,500.0,0.00021,60]
[339736857,1727919067343,500.0,0.00021,60]
[339736858,1727919068009,501.80420033,0.00021,60]
[339736859,1727919068560,158.27112462,0.00021,60]
[339736860,1727919069495,276.71223442,0.00021,60]
[339736861,1727919072230,595.28566103,0.00021,60]
[339736862,1727919072346,500.0,0.00021,60]
[339736863,1727919072675,500.0,0.00021,60]
[339736864,1727919072724,640.56,0.00021,60]
[339736865,1727919072811,899.11,0.00021,60]
[339736866,1727919072858,925.13,0.00021,60]
[339736867,1727919074523,500.0,0.00021,60]
[339736868,1727919075129,500.0,0.00021,60]
[339736869,1727919075508,500.0,0.00021,60]
[339736870,1727919075553,500.0,0.00021,60]
[339736871,1727919076983,177.74568245,0.00021,60]
[339736872,1727919078516,757.5,0.00021,60]
[339736873,1727919079554,500.0,0.00021,60]
[339736874,1727919080211,540.65,0.00021,60]
[339736875,1727919080611,706.85,0.00021,60]
[339736876,1727919081700,500.0,0.00021,60]
[339736877,1727919081887,500.0,0.00021,60]
[339736878,1727919082057,500.0,0.00021,60]
[339736879,1727919082455,500.0,0.00021,60]
[339736880,1727919083124,626.01,0.00021,60]
[339736881,1727919083701,618.61,0.00021,60]
[339736882,1727919086833,500.0,0.00021,60]
[339736883,1727919087847,500.0,0.00021,60]
[339736884,1727919088047,500.25997035,0.00021,60]
[339736885,1727919088099,500.0,0.00021,60]
[339736886,1727919089687,581.52,0.00021,60]
[339736887,1727919090770,501.10537186,0.00021,60]
[339736888,1727919092115,666.0,0.00021,60]
[339736889,1727919092169,500.0,0.00021,60]
[339736890,1727919092351,500.0,0.00021,60]
[339736891,1727919093502,500.0,0.00021,60]
[339736892,1727919093981,500.0,0.00021,60]
[339736893,1727919095434,500.0,0.00021,60]
[339736894,1727919096508,793.47,0.00021,60]
[339736895,1727919097001,1760.61,0.00021,60]
[339736896,1727919097241,725.4,0.00021,60]
[339736897,1727919098065,500.0,0.00021,60]
[339736898,1727919098227,565.6,0.00021,60]
[339736899,1727919098799,709.91,0.00021,60]
[339736900,1727919101041,730.39,0.00021,60]
[339736901,1727919105128,500.0,0.00021,60]
[339736902,1727919107748,500.0,0.00021,60]
[339736903,1727919108374,830.42,0.00021,60]
[339736904,1727919109949,500.0,0.00021,60]
[339736905,1727919110190,500.0,0.00021,60]
[339736906,1727919110263,500.0,0.00021,60]
[339736907,1727919110972,569.47,0.00021,60]
[339736908,1727919113297,500.0,0.00021,60]
[339736909,1727919113913,500.0,0.00021,60]
[339736910,1727919114159,590.99,0.00021,60]
[339736911,1727919114569,500.0,0.00021,60]
[339736912,1727919114834,546.14,0.00021,60]
[339736913,1727919116361,957.91,0.00021,60]
[339736914,1727919116442,596.77,0.00021,60]
[339736915,1727919118552,500.0,0.00021,60]
[339736916,1727919119207,500.0,0.00021,60]
[339736917,1727919121375,503.27421837,0.00021,60]
[339736918,1727919122065,500.0,0.00021,60]
[339736919,1727919122117,500.0,0.00021,60]
[339736920,1727919123097,648.43,0.00021,60]
[339736921,1727919126174,345.1343876,0.00021,60]
[339736922,1727919127075,500.0,0.00021,60]
[339736923,1727919127307,500.0,0.00021,60]
[339736924,1727919128798,522.57518916,0.00021,60]
[339736925,1727919129507,500.0,0.00021,60]
[339736926,1727919130017,500.0,0.00021,60]
[339736927,1727919130174,500.0,0.00021,60]
[339736928,1727919130973,291.08846071,0.00021,60]
[339736929,1727919131665,500.0,0.00021,60]
[339736930,1727919132168,500.0,0.00021,60]
[339736931,1727919132365,500.0,0.00021,60]
[339736932,1727919133104,532.84984719,0.00021,60]
[339736933,1727919133969,514.09743629,0.00021,60]
[339736934,1727919135221,500.0,0.00021,60]
[339736935,1727919135268,500.0,0.00021,60]
[339736936,1727919135689,500.0,0.00021,60]
[339736937,1727919137253,1208.2,0.00021,60]
[339736938,1727919138316,645.59423406,0.00021,60]
[339736939,1727919139697,506.40344217,0.00021,60]
[339736940,1727919141327,500.0,0.00021,60]
[339736941,1727919142121,500.0,0.00021,60]
[339736942,1727919142170,599.75,0.00021,60]
[339736943,1727919142218,500.0,0.00021,60]
[339736944,1727919142458,500.0,0.00021,60]
[339736945,1727919145774,500.0,0.00021,60]
[339736946,1727919146199,662.69,0.00021,60]
[339736947,1727919148491,500.0,0.00021,60]
[339736948,1727919148603,531.65,0.00021,60]
[339736949,1727919150400,500.0,0.00021,60]
[339736950,1727919152030,500.0,0.00021,60]
[339736951,1727919153047,500.0,0.00021,60]
[339736952,1727919153103,500.0,0.00021,60]
[339736953,1727919155899,500.0,0.00021,60]
[339736954,1727919156084,501.80166431,0.00021,60]
[339736955,1727919157789,1704.01,0.00021,60]
[339736956,1727919157837,500.0,0.00021,60]
[339736957,1727919160198,500.0,0.00021,60]
[339736958,1727919160727,500.0,0.00021,60]
[339736959,1727919162221,505.26142861,0.00021,60]
[339736960,1727919162386,500.0,0.00021,60]
[339736961,1727919162578,500.0,0.00021,60]
[339736962,1727919163476,812.08,0.00021,60]
[339736963,1727919164841,500.0,0.00021,60]
[339736964,1727919165112,1318.45,0.00021,60]
[339736965,1727919167497,500.0,0.00021,60]
[339736966,1727919168119,664.51,0.00021,60]
[339736967,1727919168500,500.0,0.00021,60]
[339736968,1727919171926,1308.29,0.00021,60]
[339736969,1727919172368,470.6336467,0.00021,60]
[339736970,1727919173560,1856.99,0.00021,60]
[339736971,1727919177141,500.0,0.00021,60]
[339736972,1727919177951,500.0,0.00021,60]
[339736973,1727919178180,597.33,0.00021,60]
[339736974,1727919179749,500.0,0.00021,60]
[339736975,1727919180729,500.9359899,0.00021,60]
[339736976,1727919182756,1073.15,0.00021,60]
[339736977,1727919183391,656.15,0.00021,60]
[339736978,1727919183719,500.0,0.00021,60]
[339736979,1727919185113,500.0,0.00021,60]
[339736980,1727919185159,500.0,0.00021,60]
[339736981,1727919188771,500.0,0.00021,60]
[339736982,1727919189035,171.73590019,0.00021,60]
[339736983,1727919190483,577.43958276,0.00021,60]
[339736984,1727919190598,500.0,0.00021,60]
[339736985,1727919190802,508.53550711,0.00021,60]
[339736986,1727919193592,506.24289381,0.00021,60]
[339736987,1727919193748,500.75196994,0.00021,60]
[339736988,1727919196319,500.0,0.00021,60]
[339736989,1727919196364,377.42856112,0.00021,60]
[339736990,1727919198651,500.0,0.00021,60]
[339736991,1727919201853,500.0,0.00021,60]
[339736992,1727919202529,505.19044158,0.00021,60]
[339736993,1727919204682,500.0,0.00021,60]
[339736994,1727919204884,500.0,0.00021,60]
[339736995,1727919205292,501.75191345,0.00021,60]
[339736996,1727919205746,2716.5,0.00021,60]
[339736997,1727919208067,500.0,0.00021,60]
[339736998,1727919209305,500.25276327,0.00021,60]
[339736999,1727919210668,452.53611972,0.00021,60]
[339737000,1727919210816,500.0,0.00021,60]
[339737001,1727919211064,500.0,0.00021,60]
[339737002,1727919211622,500.0,0.00021,60]
[339737003,1727919212465,500.0,0.00021,60]
[339737004,1727919214534,500.0,0.00021,60]
[339737005,1727919215666,1220.37,0.00021,60]
[339737006,1727919216898,500.0,0.00021,60]
[339737007,1727919217149,500.0,0.00021,60]
[339737008,1727919217839,500.0,0.00021,60]
[339737009,1727919218485,500.0,0.00021,60]
[339737010,1727919218613,500.0,0.00021,60]
[339737011,1727919218685,1453.89,0.00021,60]
[339737012,1727919219114,500.0,0.00021,60]
[339737013,1727919222658,500.0,0.00021,60]
[339737014,1727919222848,500.0,0.00021,60]
[339737015,1727919225379,500.0,0.00021,60]
[339737016,1727919225481,500.0,0.00021,60]
[339737017,1727919227506,500.55831755,0.00021,60]
[339737018,1727919228582,500.0,0.00021,60]
[339737019,1727919230397,568.41763445,0.00021,60]
[339737020,1727919231960,500.0,0.00021,60]
[339737021,1727919232639,500.0,0.00021,60]
[339737022,1727919232721,234.46595786,0.00021,60]
[339737023,1727919232935,500.0,0.00021,60]
[339737024,1727919233924,500.0,0.00021,60]
[339737025,1727919234610,619.29,0.00021,60]
[339737026,1727919235341,500.0,0.00021,60]
[339737027,1727919236303,500.0,0.00021,60]
[339737028,1727919237282,500.0,0.00021,60]
[339737029,1727919237686,500.43251568,0.00021,60]
[339737030,1727919237764,798.24,0.00021,60]
[339737031,1727919237996,500.0,0.00021,60]
[339737032,1727919243188,500.0,0.00021,60]
[339737033,1727919243239,784.2,0.00021,60]
[339737034,1727919243304,500.0,0.00021,60]
[339737035,1727919243678,500.0,0.00021,60]
[339737036,1727919243766,500.0,0.00021,60]
[339737037,1727919246617,500.0,0.00021,60]
[339737038,1727919247249,500.0,0.00021,60]
[339737039,1727919247932,500.0,0.00021,60]
[339737040,1727919248833,500.0,0.00021,60]
[339737041,1727919249132,600.68,0.00021,60]
[339737042,1727919249249,500.0,0.00021,60]
[339737043,1727919252331,500.0,0.00021,60]
[339737044,1727919254724,500.0,0.00021,60]
[339737045,1727919255054,501.21667364,0.00021,60]
[339737046,1727919255100,326.09656777,0.00021,60]
[339737047,1727919255420,500.0,0.00021,60]
[339737048,1727919256467,500.0,0.00021,60]
[339737049,1727919256565,500.0,0.00021,60]
[339737050,1727919258767,500.0,0.00021,60]
[339737051,1727919258935,500.0,0.00021,60]
[339737052,1727919259233,433.72623885,0.00021,60]
[339737053,1727919259616,500.0,0.00021,60]
[339737054,1727919260740,500.0,0.00021,60]
[339737055,1727919260969,605.73,0.00021,60]
[339737056,1727919261097,500.0,0.00021,60]
[339737057,1727919262698,502.83562869,0.00021,60]
[339737058,1727919264418,500.0,0.00021,60]
[339737059,1727919265386,534.47,0.00021,60]
[339737060,1727919265440,500.0,0.00021,60]
[339737061,1727919265611,500.0,0.00021,60]
[339737062,1727919266515,593.1,0.00021,60]
[339737063,1727919267056,235.89295947,0.00021,60]
[339737064,1727919267951,544.42,0.00021,60]
[339737065,1727919268016,500.36826614,0.00021,60]
[339737066,1727919268529,500.93371888,0.00021,60]
[339737067,1727919269244,500.0,0.00021,60]
[339737068,1727919269785,500.0,0.00021,60]
[339737069,1727919271403,500.0,0.00021,60]
[339737070,1727919271474,515.38,0.00021,60]
[339737071,1727919271549,500.0,0.00021,60]
[339737072,1727919273461,500.0,0.00021,60]
[339737073,1727919275003,500.0,0.00021,60]
[339737074,1727919275169,500.0,0.00021,60]
[339737075,1727919277539,500.0,0.00021,60]
[339737076,1727919278239,500.0,0.00021,60]
[339737077,1727919278298,500.0,0.00021,60]
[339737078,1727919280342,500.0,0.00021,60]
[339737079,1727919280995,500.0,0.00021,60]
[339737080,1727919281646,500.0,0.00021,60]
[339737081,1727919281807,500.0,0.00021,60]
[339737082,1727919281855,1033.79,0.00021,60]
[339737083,1727919282573,500.0,0.00021,60]
[339737084,1727919283633,500.0,0.00021,60]
[339737085,1727919287845,500.0,0.00021,60]
[339737086,1727919289234,500.0,0.00021,60]
[339737087,1727919290520,500.0,0.00021,60]
[339737088,1727919291038,508.65,0.00021,60]
[339737089,1727919291464,437.46,0.00021,60]
[339737090,1727919292691,500.0,0.00021,60]
[339737091,1727919294321,500.0,0.00021,60]
[339737092,1727919298205,500.0,0.00021,60]
[339737093,1727919299362,500.0,0.00021,60]
[339737094,1727919301327,2475.12,0.00021,60]
[339737095,1727919303010,500.40657843,0.00021,60]
[339737096,1727919303065,500.0,0.00021,60]
[339737097,1727919304041,500.0,0.00021,60]
[339737098,1727919305260,500.0,0.00021,60]
[339737099,1727919306068,500.0,0.00021,60]
[339737100,1727919308231,602.4,0.00021,60]
[339737101,1727919308422,500.0,0.00021,60]
[339737102,1727919308974,856.33,0.00021,60]
[339737103,1727919313019,501.43203956,0.00021,60]
[339737104,1727919313084,500.0,0.00021,60]
[339737105,1727919313602,500.0,0.00021,60]
[339737106,1727919313659,500.0,0.00021,60]
[339737107,1727919314295,500.0,0.00021,60]
[339737108,1727919315149,500.0,0.00021,60]
[339737109,1727919315651,500.0,0.00021,60]
[339737110,1727919316887,500.0,0.00021,60]
[339737111,1727919316949,500.0,0.00021,60]
[339737112,1727919316995,766.4,0.00021,60]
[339737113,1727919317039,500.0,0.00021,60]
[339737114,1727919317259,500.0,0.00021,60]
[339737115,1727919317340,500.0,0.00021,60]
[339737116,1727919319943,500.0,0.00021,60]
[339737117,1727919320626,1687.25,0.00021,60]
[339737118,1727919321705,500.0,0.00021,60]
[339737119,1727919321876,762.75,0.00021,60]
[339737120,1727919322051,500.0,0.00021,60]
[339737121,1727919322321,500.0,0.00021,60]
[339737122,1727919323076,500.0,0.00021,60]
[339737123,1727919325299,886.58,0.00021,60]
[339737124,1727919325942,500.0,0.00021,60]
[339737125,1727919327568,500.0,0.00021,60]
[339737126,1727919327614,500.0,0.00021,60]
[339737128,1727919331485,658.81,0.00021,60]
[339737129,1727919332272,500.0,0.00021,60]
[339737130,1727919333538,501.16025032,0.00021,60]
[339737131,1727919333608,500.0,0.00021,60]
[339737132,1727919334770,500.0,0.00021,60]
[339737133,1727919335032,500.0,0.00021,60]
[339737134,1727919336436,504.65,0.00021,60]
[339737135,1727919336490,500.0,0.00021,60]
[339737136,1727919338073,523.38,0.00021,60]
[339737137,1727919339994,500.0,0.00021,60]
[339737138,1727919341015,500.0,0.00021,60]
[339737139,1727919342548,500.0,0.00021,60]
[339737140,1727919343835,504.13853399,0.00021,60]
[339737141,1727919344228,680.33,0.00021,60]
[339737142,1727919346013,500.0,0.00021,60]
[339737143,1727919346235,843.98,0.00021,60]
[339737144,1727919347947,500.0,0.00021,60]
[339737145,1727919347995,638.25,0.00021,60]
[339737146,1727919349250,503.23433397,0.00021,60]
[339737147,1727919349296,500.0,0.00021,60]
[339737148,1727919349576,500.0,0.00021,60]
[339737149,1727919351144,500.0,0.00021,60]
[339737150,1727919352804,500.0,0.00021,60]
[339737151,1727919353098,500.0,0.00021,60]
[339737152,1727919353166,500.0,0.00021,60]
[339737153,1727919355283,500.45372874,0.00021,60]
[339737154,1727919355329,500.0,0.00021,60]
[339737155,1727919356218,500.0,0.00021,60]
[339737156,1727919358778,500.0,0.00021,60]
[339737157,1727919359244,500.0,0.00021,60]
[339737158,1727919359819,500.0,0.00021,60]
[339737159,1727919359982,500.0,0.00021,60]
[339737160,1727919361727,500.0,0.00021,60]
[339737161,1727919365034,505.1570356,0.00021,60]
[339737162,1727919366654,500.0,0.00021,60]
[339737163,1727919367317,500.97324784,0.00021,60]
[339737164,1727919372058,500.0,0.00021,60]
[339737165,1727919372553,500.0,0.00021,60]
[339737166,1727919373508,788.61,0.00021,60]
[339737167,1727919373786,571.9,0.00021,60]
[339737168,1727919374770,500.0,0.00021,60]
[339737169,1727919375625,500.0,0.00021,60]
[339737170,1727919378562,500.0,0.00021,60]
[339737171,1727919383210,500.0,0.00021,60]
[339737172,1727919383392,500.0,0.00021,60]
[339737173,1727919384856,500.0,0.00021,60]
[339737174,1727919387240,500.0,0.00021,60]
[339737175,1727919387345,500.0,0.00021,60]
[339737176,1727919388496,1178.69,0.00021,60]
[339737177,1727919388789,500.0,0.00021,60]
[339737178,1727919389935,500.0,0.00021,60]
[339737179,1727919390553,634.51981557,0.00021,60]
[339737180,1727919392866,515.42377405,0.00021,60]
[339737181,1727919394700,500.0,0.00021,60]
[339737182,1727919398039,1800.44,0.00021,60]
[339737183,1727919399093,500.0,0.00021,60]
[339737184,1727919401109,500.0,0.00021,60]
[339737185,1727919401957,500.0,0.00021,60]
[339737186,1727919408385,500.0,0.00021,60]
[339737187,1727919409184,1653.84,0.00021,60]
[339737188,1727919409257,500.0,0.00021,60]
[339737189,1727919410189,500.0,0.00021,60]
[339737190,1727919414844,1203.04,0.00021,60]
[339737191,1727919415628,500.0,0.00021,60]
[339737192,1727919417001,500.0,0.00021,60]
[339737193,1727919418472,500.0,0.00021,60]
[339737194,1727919419173,500.0,0.00021,60]
[339737195,1727919420606,954.53,0.00021,60]
[339737196,1727919421293,670.57,0.00021,60]
[339737197,1727919422298,500.0,0.00021,60]
[339737198,1727919424808,500.0,0.00021,60]
[339737199,1727919425645,500.0,0.00021,60]
[339737200,1727919428866,500.0,0.00021,60]
[339737201,1727919429692,500.0,0.00021,60]
[339737202,1727919431537,500.0,0.00021,60]
[339737203,1727919432818,1253.78,0.00021,60]
[339737204,1727919432868,500.0,0.00021,60]
[339737205,1727919433502,500.0,0.00021,60]
[339737206,1727919434619,572.44,0.00021,60]
[339737207,1727919434771,500.0,0.00021,60]
[339737208,1727919436133,500.0,0.00021,60]
[339737209,1727919436982,177.51635053,0.00021,60]
[339737210,1727919438687,628.81,0.00021,60]
[339737211,1727919440079,500.0,0.00021,60]
[339737212,1727919440164,500.0,0.00021,60]
[339737213,1727919440412,175.64301043,0.00021,60]
[339737214,1727919441277,498.71401586,0.00021,60]
[339737215,1727919441326,505.36799681,0.00021,60]
[339737216,1727919442015,664.29,0.00021,60]
[339737217,1727919442107,500.0,0.00021,60]
[339737218,1727919445112,585.25,0.00021,60]
[339737219,1727919445843,500.0,0.00021,60]
[339737220,1727919448359,500.0,0.00021,60]
[339737221,1727919451127,2624.14,0.00021,60]
[339737222,1727919451512,500.0,0.00021,60]
[339737223,1727919454020,500.0,0.00021,60]
[339737224,1727919454189,500.0,0.00021,60]
[339737225,1727919456396,589.37,0.00021,60]
[339737226,1727919456443,500.0,0.00021,60]
[339737227,1727919457193,500.0,0.00021,60]
[339737228,1727919457423,500.0,0.00021,60]
[339737229,1727919459974,500.0,0.00021,60]
[339737230,1727919460345,500.0,0.00021,60]
[339737231,1727919460695,500.0,0.00021,60]
[339737232,1727919463523,500.0,0.00021,60]
[339737233,1727919463888,500.0,0.00021,60]
[339737234,1727919467187,500.0,0.00021,60]
[339737235,1727919470600,564.27,0.00021,60]
[339737236,1727919472628,500.0,0.00021,60]
[339737237,1727919474336,500.0,0.00021,60]
[339737239,1727919480700,655.72,0.00021,60]
[339737240,1727919480851,500.0,0.00021,60]
[339737241,1727919481079,500.0,0.00021,60]
[339737242,1727919483451,764.98,0.00021,60]
[339737243,1727919485589,597.0,0.00021,60]
[339737244,1727919486574,500.0,0.00021,60]
[339737245,1727919487633,458.30709146,0.00021,60]
[339737246,1727919488560,1402.25,0.00021,60]
[339737247,1727919489026,305.40973619,0.00021,60]
[339737248,1727919490154,616.92,0.00021,60]
[339737249,1727919491141,500.0,0.00021,60]
[339737250,1727919493188,935.8,0.00021,60]
[339737251,1727919493597,500.0,0.00021,60]
[339737252,1727919493711,500.0,0.00021,60]
[339737253,1727919495506,500.0,0.00021,60]
[339737254,1727919498566,500.0,0.00021,60]
[339737255,1727919498821,500.0,0.00021,60]
[339737256,1727919499554,1208.61,0.00021,60]
[339737257,1727919499749,519.49874108,0.00021,60]
[339737258,1727919500810,500.0,0.00021,60]
[339737259,1727919502285,577.3,0.00021,60]
[339737260,1727919502878,563.7,0.00021,60]
[339737261,1727919503609,500.0,0.00021,60]
[339737262,1727919506126,500.0,0.00021,60]
[339737263,1727919507426,500.0,0.00021,60]
[339737264,1727919508686,500.0,0.00021,60]
[339737265,1727919508763,500.0,0.00021,60]
[339737266,1727919508805,500.0,0.00021,60]
[339737269,1727919510334,500.0,0.00021,60]
[339737270,1727919510913,500.0,0.00021,60]
[339737271,1727919512729,500.0,0.00021,60]
[339737272,1727919514487,500.0,0.00021,60]
[339737273,1727919514683,568.39,0.00021,60]
[339737274,1727919515314,500.0,0.00021,60]
[339737275,1727919515624,500.0,0.00021,60]
[339737276,1727919517121,500.0,0.00021,60]
[339737277,1727919517757,500.0,0.00021,60]
[339737278,1727919518418,820.68,0.00021,60]
[339737279,1727919518460,500.0,0.00021,60]
[339737280,1727919520645,500.0,0.00021,60]
[339737281,1727919521538,500.0,0.00021,60]
[339737282,1727919522059,500.0,0.00021,60]
[339737283,1727919522226,500.0,0.00021,60]
[339737284,1727919523047,500.0,0.00021,60]
[339737285,1727919523578,500.0,0.00021,60]
[339737286,1727919523837,500.0,0.00021,60]
[339737287,1727919525564,500.0,0.00021,60]
[339737288,1727919525791,765.9,0.00021,60]
[339737289,1727919527597,500.0,0.00021,60]
[339737290,1727919529015,657.36,0.00021,60]
[339737291,1727919529345,319.0330912,0.00021,60]
[339737292,1727919529509,559.01,0.00021,60]
[339737293,1727919530365,500.0,0.00021,60]
[339737294,1727919531354,500.0,0.00021,60]
[339737295,1727919535024,537.03,0.00021,60]
[339737296,1727919536061,990.71,0.00021,60]
[339737297,1727919537103,626.47299538,0.00021,60]
[339737298,1727919538521,500.0,0.00021,60]
[339737299,1727919539719,745.07,0.00021,60]
[339737300,1727919540199,506.46886633,0.00021,60]
[339737301,1727919541300,500.0,0.00021,60]
[339737302,1727919543264,500.0,0.00021,60]
[339737303,1727919544320,500.0,0.00021,60]
[339737304,1727919545492,2371.99,0.00021,60]
[339737305,1727919547470,500.0,0.00021,60]
[339737306,1727919547525,573.82,0.00021,60]
[339737307,1727919550362,500.0,0.00021,60]
[339737308,1727919554368,500.0,0.00021,60]
[339737309,1727919554981,502.17739995,0.00021,60]
[339737310,1727919555163,500.0,0.00021,60]
[339737311,1727919555342,842.73,0.00021,60]
[339737312,1727919555391,500.0,0.00021,60]
[339737313,1727919557748,500.0,0.00021,60]
[339737314,1727919557797,500.0,0.00021,60]
[339737315,1727919558213,500.0,0.00021,60]
[339737316,1727919559287,500.0,0.00021,60]
[339737317,1727919559607,500.0,0.00021,60]
[339737318,1727919560119,675.73,0.00021,60]
[339737319,1727919560195,535.76,0.00021,60]
[339737320,1727919562264,500.0,0.00021,60]
[339737321,1727919565051,554.32,0.00021,60]
[339737322,1727919566140,500.0,0.00021,60]
[339737323,1727919567287,500.0,0.00021,60]
[339737324,1727919567825,500.0,0.00021,60]
[339737325,1727919570443,647.33605125,0.00021,60]
[339737327,1727919571266,505.7760631,0.00021,60]
[339737328,1727919572776,1616.95,0.00021,60]
[339737329,1727919573688,500.0,0.00021,60]
[339737330,1727919574508,796.56,0.00021,60]
[339737331,1727919575914,619.52,0.00021,60]
[339737332,1727919580174,849.64,0.00021,60]
[339737333,1727919580222,500.0,0.00021,60]
[339737334,1727919580708,500.0,0.00021,60]
[339737335,1727919584468,561.3,0.00021,60]
[339737336,1727919584736,500.0,0.00021,60]
[339737337,1727919586795,651.99,0.00021,60]
[339737338,1727919588300,500.0,0.00021,60]
[339737339,1727919589290,501.58,0.00021,60]
[339737340,1727919590486,1129.58,0.00021,60]
[339737341,1727919591694,500.0,0.00021,60]
[339737342,1727919592671,500.0,0.00021,60]
[339737343,1727919594248,825.26,0.00021,60]
[339737344,1727919595317,160.20608756,0.00021,60]
[339737345,1727919597869,500.0,0.00021,60]
[339737346,1727919598094,342.68002051,0.00021,60]
[339737347,1727919598395,500.0,0.00021,60]
[339737348,1727919599961,500.0,0.00021,60]
[339737349,1727919600925,611.66,0.00021,60]
[339737350,1727919600969,500.0,0.00021,60]